Cogmind - Beta 13 @@@ ROGUE MODE // 2024.04.01 @ 19:18:51 Player: Prince Result: Destroyed by G-34 Mercenary with Small Laser Performance ------------- Evolutions (1) 500 Regions Visited (3) 600 Robots Destroyed (49) 245 Value Destroyed (999) 999 Prototype IDs (2) 40 Alien Tech Used (0) 0 Bonus (60) 60 TOTAL SCORE: 2444 Bonus ------- Follower Combat Kills 60 Cogmind --------- Core Integrity 0/400 Matter 299/300 Energy 100/100 System Corruption 0% Temperature Cool (6) Movement Walking (260) Ox2 Location -9/Materials Parts ------- > --- POWER (1) -------- (None) > --- PROPULSION (3) --- Aluminum Leg Flight Unit Flight Unit > --- UTILITY (3) ------ Large Storage Unit > --- WEAPON (2) ------- Light Assault Rifle Light Assault Rifle > --- INVENTORY (15) --- Light Ion Engine Medium Matter Pod (100) Seismic Detector Power Shielding Propulsion Shielding Beam Rifle Heavy Assault Rifle Grenade Launcher Peak State ------------ > --- POWER ------------ Light Nuclear Core > --- PROPULSION ------- Aluminum Leg Aluminum Leg Improved Aluminum Leg > --- UTILITY ---------- Medium Storage Unit Structural Scanner Light Armor Plating > --- WEAPON ----------- Beam Rifle Beam Rifle > --- INVENTORY -------- Ion Engine Light Ion Engine Medium Matter Pod Power Shielding Propulsion Shielding Particle Gun Particle Gun Beam Cannon Light Assault Rifle Grenade Launcher [Rating: 15] Favorites ----------- Power Light Ion Engine Engine Light Ion Engine Power Core Light Nuclear Core Propulsion Aluminum Leg Treads Light Treads Leg Aluminum Leg Flight Unit Flight Unit Utility Structural Scanner Device Structural Scanner Storage Medium Storage Unit Protection Light Armor Plating Weapon Light Assault Rifle Energy Gun Particle Gun Energy Cannon Beam Cannon Ballistic Gun Light Assault Rifle Launcher Grenade Launcher Build | -11 -10 -10 -9 ------- Run | Yrd Mat Min Mat Slots Evolved 2 | . . . 2 Power . | . . . . Propulsion 1 | . . . 1 Utility 1 | . . . 1 Weapon . | . . . . Parts Attached 49 | 6 14 4 25 Power 6 | 1 3 1 1 Engine 5 | 1 3 . 1 Core 1 | . . 1 . Reactor . | . . . . Propulsion 15 | 2 2 1 10 Treads 2 | 2 . . . Leg 9 | . 2 1 6 Wheel . | . . . . Hover . | . . . . Flight 4 | . . . 4 Utility 11 | 1 3 . 7 Device 4 | . 2 . 2 Storage 3 | 1 1 . 1 Processor . | . . . . Hackware . | . . . . Protection 4 | . . . 4 Artifact . | . . . . Weapon 17 | 2 6 2 7 Energy Gun 10 | 2 4 . 4 Energy Cannon 1 | . . . 1 Ballistic Gun 5 | . 2 1 2 Ballistic Cannon . | . . . . Launcher 1 | . . 1 . Special Weapon . | . . . . Impact Weapon . | . . . . Slashing Weapon . | . . . . Piercing Weapon . | . . . . Special Melee Weapon . | . . . . Unidentified Prototypes . | . . . . Corrupted Parts 1 | . 1 . . System Corruption 7 | . 7 . . Parts Lost 19 | . 4 . 15 Power 2 | . . . 2 Propulsion 6 | . 1 . 5 Utility 3 | . . . 3 Weapon 8 | . 3 . 5 Highest Loss Streak 8 | . 2 . 8 To Critical Strikes . | . . . . Average Slot Usage (%) 88 | . 93 100 77 Engine 8 | . 14 12 1 Core 2 | . . 1 5 Treads 4 | . 17 . . Leg 17 | . 6 28 18 Flight 2 | . . . 6 Device 10 | . 12 14 6 Storage 12 | . 14 14 11 Protection 2 | . . . 6 Energy Gun 12 | . 20 . 14 Ballistic Gun 12 | . 6 28 4 Naked Turns . | . . . . Heaviest Build 35 | 12 18 18 35 Greatest Support 40 | 40 40 20 33 Greatest Overweight (x) 8 | 2 . . 8 Average Overweight (x) . | 1 . . 1 Largest Inventory Capacity 15 | 8 10 10 15 Average Capacity 10 | 7 9 10 13 Most Carried 12 | 8 10 10 12 Average Carried 9 | 6 8 9 9 Final Capacity 15 | 8 10 10 15 Final Carried 10 | 4 10 10 8 Class Distribution -------------------- 70% | Scavenger-Mutant 29% | Mutant Dominant Class ---------------- Mutant | -10/Materials Scavenger-Mutant | -10/Mines Scavenger-Mutant | -9/Materials Resources | -11 -10 -10 -9 ----------- Run | Yrd Mat Min Mat Matter Collected 892 | 249 276 94 273 Remotely . | . . . . Salvage Created 1470 | . 546 107 817 Parts 109 | . 39 5 65 Haulers Intercepted 1 | . 1 . . Recyclers Shooed 4 | . 1 . 3 Parts Field Recycled . | . . . . Retrieved Matter . | . . . . Parts Self-Destructed . | . . . . Prevented . | . . . . Kills | -11 -10 -10 -9 ------- Run | Yrd Mat Min Mat Combat Hostiles Destroyed 35 | . 14 2 19 Guns 29 | . 11 2 16 Cannons 3 | . . . 3 AOE 3 | . 3 . . Classes Destroyed 10 | . 7 1 2 Worker 2 | . . . 2 Builder 2 | . 1 . 1 Tunneler 1 | . . . 1 Hauler 1 | . 1 . . Recycler 2 | . 1 . 1 Operator 1 | . 1 . . Watcher 5 | . 1 . 4 Swarmer 17 | . 9 . 8 Grunt 13 | . 5 . 8 Sentry 5 | . . 2 3 Best Kill Streak 6 | . 5 2 6 Combat Bots Only 5 | . 3 2 5 Max Kills in Single Turn 3 | . 3 1 2 Gunslinging 1 | . 1 . . Exploded 1 | . 1 . . Melee . | . . . . Uniques/NPCs Destroyed . | . . . . Combat | -11 -10 -10 -9 -------- Run | Yrd Mat Min Mat Hostile Shots Fired 221 | . 67 12 142 Missed 55 | . 20 1 34 Damage Taken 2073 | . 557 157 1359 Core 556 | . 96 56 404 Absorbed by Shields . | . . . . Core Remaining (%) 69 | 100 . 39 . Volleys Fired 135 | . 42 8 85 Largest 2 | . 2 2 2 Hottest 130 | . 100 40 130 Shots Fired 224 | . 67 18 139 Gun 199 | . 67 18 114 Cannon 25 | . . . 25 Launcher . | . . . . Special . | . . . . Kinetic 32 | . . 18 14 Thermal 145 | . 20 . 125 Explosive . | . . . . Electromagnetic 47 | . 47 . . Robot Hit Streak 22 | . 8 15 22 Robot Miss Streak 5 | . 3 1 5 Penetration Max . | . . . . Secondary Targets 3 | . 2 . 1 Max Gunslinging Chain 1 | . 1 . 1 Shots Hit Robots 138 | . 45 16 77 Core Hits 64 | . 21 6 37 Critical Kills . | . . . . Critical Parts Destroyed 2 | . . . 2 Critical Strikes 11 | . 4 . 7 Burn 8 | . 3 . 5 Destroy 2 | . . . 2 Corrupt 1 | . 1 . . Melee Attacks . | . . . . Impact . | . . . . Slashing . | . . . . Piercing . | . . . . Sneak Attacks . | . . . . Combat Hostiles . | . . . . Follow-up Attacks . | . . . . Damage Inflicted 2350 | . 951 109 1290 Guns 1685 | . 639 109 937 Cannons 350 | . . . 350 Explosions 303 | . 303 . . Melee . | . . . . Ramming 12 | . 9 . 3 Kinetic 200 | . . 109 91 Thermal 1664 | . 468 . 1196 Explosive . | . . . . Electromagnetic 474 | . 474 . . Impact . | . . . . Slashing . | . . . . Piercing . | . . . . Highest Corruption 7 | . 7 7 . Average Corruption 7 | . 7 7 . Corruption Purged . | . . . . Corruption Blocked . | . . . . Effects 38 | . 12 26 . Message Errors 8 | . 1 7 . Matter Fused 9 | . 4 5 . Heat Flow Errors 2 | . 1 1 . Energy Discharges 4 | . 2 2 . Parts Fused 1 | . . 1 . Data Loss (minor) 6 | . 3 3 . Data Loss (major) 4 | . 1 3 . Misfires 3 | . . 3 . Weapon Failures 1 | . . 1 . Overload Shots . | . . . . Overflow Damage 68 | . 47 . 21 Projectiles 21 | . . . 21 Explosions 47 | . 47 . . Melee . | . . . . Knockbacks . | . . . . Impact . | . . . . Kinetic . | . . . . Secondary . | . . . . Self-Inflicted Damage 99 | . 99 . . Shots 4 | . 4 . . Rammed 1 | . 1 . . Targets Rammed 2 | . 1 . 1 Kicked 1 | . . . 1 Crushed . | . . . . Highest Temperature 578 | . 307 151 578 Average Temperature 195 | . 99 47 240 Received Heat Transfer 753 | . 144 63 546 Effects 45 | . 4 . 41 Shutdowns 5 | . . . 5 Energy Bleed 3 | . . . 3 Interference 10 | . 4 . 6 Matter Decay 2 | . . . 2 Short Circuit 1 | . . . 1 Damage (minor) 8 | . . . 8 Damage (major) 14 | . . . 14 Damage (core) 2 | . . . 2 Siege Activations . | . . . . Robots Corrupted . | . . . . Combat Hostiles . | . . . . Parts Fried 2 | . 2 . . Impact Corruptions . | . . . . Robots Melted . | . . . . Combat Hostiles . | . . . . Parts Melted 2 | . . . 2 Heat Transferred 4359 | . 1103 . 3256 Parts Sabotaged . | . . . . Parts Stolen . | . . . . Parts Stripped . | . . . . Power Chain Reactions 7 | . 7 . . Alert | -11 -10 -10 -9 ------- Run | Yrd Mat Min Mat Peak Influence 353 | . 353 123 303 Initial 88 | . . 88 15 Average 118 | . 194 56 118 Maximum Alert Level 1 | . 1 . 1 Low Security (%) 81 | 100 50 100 89 Level 1 18 | . 49 . 10 Level 2 . | . . . . Level 3 . | . . . . Level 4 . | . . . . Level 5 . | . . . . High Security . | . . . . Max Security . | . . . . Squads Dispatched 4 | . 2 . 2 Investigation 1 | . 1 . . Extermination . | . . . . Reinforcement 3 | . 1 . 2 Assault . | . . . . Garrison . | . . . . Intercept . | . . . . Searches Triggered . | . . . . Construction Impeded 1 | . . . 1 Haulers Reinforced . | . . . . Active Scanning Responses . | . . . . Cargo Convoy Interrupts . | . . . . Stealth | -11 -10 -10 -9 --------- Run | Yrd Mat Min Mat Distress Signals 3 | . 2 . 1 Communications Jammed . | . . . . Distress Signals . | . . . . Times Spotted 64 | . 23 4 37 Peak Tracking Total 6 | . 3 2 6 Tactical Retreats 6 | . 1 . 5 Traps | -11 -10 -10 -9 ------- Run | Yrd Mat Min Mat Traps Triggered . | . . . . Indirectly . | . . . . Trap Hack Attempts . | . . . . Triggered . | . . . . Disarmed . | . . . . Reprogrammed . | . . . . Reused . | . . . . Traps Extracted . | . . . . Installed . | . . . . Triggered . | . . . . Machines | -11 -10 -10 -9 ---------- Run | Yrd Mat Min Mat Machines Disabled 2 | . 1 . 1 Max in Single Turn 1 | . 1 . 1 Machines Repaired . | . . . . Machines Dismantled . | . . . . Machines Sabotaged . | . . . . Overloaded Fab Kills . | . . . . Hacking | -11 -10 -10 -9 --------- Run | Yrd Mat Min Mat Machines Accessed 5 | . 3 . 2 Terminals 5 | . 3 . 2 Fabricators . | . . . . Repair Stations . | . . . . Recycling Units . | . . . . Scanalyzers . | . . . . Garrison Access . | . . . . Total Hacks 21 | . 12 . 9 Successful 11 | . 6 . 5 Failed 10 | . 6 . 4 Catastrophic 1 | . . . 1 Database Lockouts . | . . . . Manual 1 | . . . 1 Terminals 21 | . 12 . 9 Fabricators . | . . . . Repair Stations . | . . . . Recycling Units . | . . . . Scanalyzers . | . . . . Garrison Access . | . . . . Terminal Hacks 11 | . 6 . 5 Record 3 | . 1 . 2 Prototype ID Bank 1 | . . . 1 Level Access Points 1 | . 1 . . Alert Level 1 | . . . 1 Locate Traps 1 | . 1 . . Dispatch Records 1 | . 1 . . Hauler Manifests 1 | . 1 . . Zone Layout 2 | . 1 . 1 Fabricator Hacks . | . . . . Repair Station Hacks . | . . . . Recycling Unit Hacks . | . . . . Scanalyzer . | . . . . Garrison Access Hacks . | . . . . Unauthorized Hacks . | . . . . Terminals . | . . . . Fabricators . | . . . . Repair Stations . | . . . . Recycling Units . | . . . . Scanalyzers . | . . . . Garrison Access . | . . . . Data Cores Recovered 1 | . 1 . . Used . | . . . . Hacking Detections 3 | . 2 . 1 Full Trace Events 3 | . 2 . 1 Feedback Events . | . . . . Feedback Blocked . | . . . . Robot Schematics Acquired . | . . . . Robots Built . | . . . . Authchips . | . . . . Time . | . . . . Total Robot Build Rating . | . . . . Part Schematics Acquired . | . . . . Parts Built . | . . . . Authchips . | . . . . Time . | . . . . Total Part Build Rating . | . . . . Parts Repaired . | . . . . Time . | . . . . Parts Recycled . | . . . . Recycled Matter . | . . . . Retrieved Matter . | . . . . Retrieved Components . | . . . . Parts Scanalyzed . | . . . . Part Schematics Acquired . | . . . . Parts Damaged . | . . . . Bothacking | -11 -10 -10 -9 ------------ Run | Yrd Mat Min Mat Used RIF Installer . | . . . . Robots Hacked . | . . . . Non-combat . | . . . . Combat . | . . . . Robot Hacks Applied . | . . . . Relay Couplers Released . | . . . . Fabnet Peak Effective % . | . . . . Robots Rewired . | . . . . Allies Hacked . | . . . . Hacks Repelled . | . . . . Allies | -11 -10 -10 -9 -------- Run | Yrd Mat Min Mat Total Allies 3 | . . 3 . Largest Group 3 | . . 3 . Highest-Rated Group 40 | . . 40 . Highest-Rated Ally 16 | . . 16 . Total Orders . | . . . . Ally Attacks 15 | . . 15 . Total Damage 199 | . . 199 . Kills 2 | . . 2 . Allies Corrupted . | . . . . Allies Melted . | . . . . Intel | -11 -10 -10 -9 ------- Run | Yrd Mat Min Mat Robot Analysis Total . | . . . . Derelict Logs Recovered 1 | . . 1 . Drone Launches . | . . . . Drone Recoveries . | . . . . Exploration | -11 -10 -10 -9 ------------- Run | Yrd Mat Min Mat Turns Passed 2357 | 60 663 680 954 Spaces Moved 1214 | 38 346 512 318 Core 44 | 35 . . 9 Treads 220 | 3 217 . . Legs 914 | . 129 512 273 Wheels . | . . . . Hover . | . . . . Flight 36 | . . . 36 Fastest Speed 50 | 50 120 120 120 Average Speed 145 | 120 145 120 191 Slowest Speed 450 | 160 160 120 450 Overloaded Moves . | . . . . Propulsion Burnouts . | . . . . Robots Hopped . | . . . . Cave-ins Triggered . | . . . . Exploration Rate (%) 41 | 3 31 92 39 Regions Visited 3 Branch Regions 1 Pre-discovered Areas . | . . . . Known Exits Taken 1 | . . 1 . Unknown Exits Taken 2 | 1 1 . . Scrap Searched 2 | . . 2 . Spaces Dug . | . . . . Terrain Destroyed 17 | . 17 . . Melee . | . . . . Projectile . | . . . . AOE 17 | . 17 . . Terrain Rammed . | . . . . Walls Destroyed . | . . . . Machines Disabled . | . . . . Actions | -11 -10 -10 -9 --------- Run | Yrd Mat Min Mat Total 1583 | 51 440 567 525 Wait 115 | . 9 30 76 Move 1211 | 37 345 511 318 Hop . | . . . . Pick Up 46 | 8 19 6 13 Fast Attach 6 | 2 1 1 2 Attach 21 | 4 4 . 13 Detach . | . . . . Swap 22 | . 9 3 10 Drop 25 | . 10 8 7 Fire 135 | . 42 8 85 Melee . | . . . . Ram . | . . . . Kick 1 | . . . 1 Crush 1 | . 1 . . Escape Stasis . | . . . . Rewire . | . . . . Trap . | . . . . Miscellaneous . | . . . . Route ------- -11/Scrapyard -10/Materials (discovered 4 exits: Mat x3 / [*Min]) -10/Mines (discovered 2 exits: *Mat x2) -9/Materials (discovered 2 exits: Mat / [*Min]) History --------- Turn | Location | Event 5 | -11/Scrapyard | Discovered new exit (range 16) 61 | -11/Scrapyard | Entered Materials 270 | -10/Materials | Identified exit to Materials 317 | -10/Materials | Build established: Mutant 485 | -10/Materials | Discovered new exit (range 16) 724 | -10/Materials | Entered Mines 729 | -10/Mines | Assisted by bots powering up and referring to "LRC-V3" 844 | -10/Mines | Learned 2 Materials zone layouts 852 | -10/Mines | Build established: Scavenger-Mutant 1006 | -10/Mines | Discovered exit to Materials (range 14) 1313 | -10/Mines | Discovered exit to Materials (range 3) 1327 | -10/Mines | Core integrity fell below 50% 1404 | -10/Mines | Entered Materials 1404 | -9/Materials | Evolved 2 slots: Propulsion x1, Utility x1 1405 | -9/Materials | Identified exit to Materials 1884 | -9/Materials | Discovered new exit (range 15) 1939 | -9/Materials | Core integrity fell below 50% 1980 | -9/Materials | Core integrity fell below 20% 2016 | -9/Materials | Lost 8 parts (1p3n2u2w) 2358 | -9/Materials | Destroyed by G-34 Mercenary with Small Laser Last Messages --------------- K-01 Serf collects debris. O-16 Technician: "IFF HANDSHAKE FAILED. SECURING TERMINAL." R-06 Scavenger collects Lgt. Treads. R-06 Scavenger collects Heat Sink. ALERT: Hostiles spotted, dispatching reinforcements to Terminal M004. T-07 Excavator is excavating. Flight Unit destroyed. Particle Gun destroyed. G-34 Mercenary suffers critical hit (Destroy). Destroyed Aluminum Leg. G-34 Mercenary suffers critical hit (Destroy). Destroyed Ion Engine. Flight Unit destroyed. G-34 Mercenary destroyed. K-01 Serf collects debris. Acquired 41 matter. Kicked K-01 Serf. Ion Engine destroyed. Map ----- +----------------------------------------------------+ | | | | | | | ???????????????????????????????????????????????? | | ???????????????????????????????????????????????? | | ???????????????????????????????????????????????? | | ???????????????????????????????????????????????? | | ???????????????????????????????????????????????? | | ???????????????????????????????????????????????? | | ???????????????????????????????????????????????? | | ???????????????????????????????????????????????? | | ???????????????????????????????????????????????? | | ???????????????????????????????????????????????? | | ???????????????????????????????????????????????? | | ???????????????????????????##??????????????????? | | ??????????????????????????? ??????????????????? | | ?????????????????????????## ##?????????????????? | | ?????????????????????????# ###########???????? | | ???????????????????????### # #???????? | | ??????????????????????? # #####???? | | ?????????????????###+##### + """ """ # #???? | | ????????????????# # # """ """ # < #???? | | ????????????????# """g # # """ """ # #???? | | ????????????????# """ # ########### #???? | | ????????????????# """o # #???? | | ????????????????# @! k #???? | | ????????????????# =# #???? | | ????????????????# # ############+####?? | | ????????????????# ""T"" # #?????????????????? | | ????????????????# """"" # #?????????????????? | | ????????????????########## #?????????????????? | | ?????????????????????????# #?????????????????? | | ?????????????????????????# #?????????????????? | | ?????????????????????????# #?????????????????? | | ?????????????????????????# #?????????????????? | | ?????????????????????????# #?????????????????? | | ?????????????????????????# #?????????????????? | | ?????????????????????????# #?????????????????? | | ?????????????????????????# #?????????????????? | | ?????????????????????????# #?????????????????? | | ????????????#######?????## ##????????????????? | | ????????????# ####### #????????????????? | | ?############ ! #????????????????? | | ?# " % %= #????????????????? | | ?# % ##### #????????????????? | | ?# %% #???# ####### #????????????????? | | ?# "T" #???##### #?????#######????????????????? | | ?# """ #???????# #????????????????????????????? | | ## #???????# #????????????????????????????? | | ##+#######T#???# #????????????????????????????? | +----------------------------------------------------+ Best States ------------- Heat Dissipation 35 Energy Generation 14 Energy Capacity 250 Matter Stores 300 Matter Capacity 300 Sight Range 16 Terrain Scan Density 10 Armor Coverage 150 Propulsion Shielding 33 Evasion (%) 55 Recoil Reduction 2 Item Schematics ----------------- None Robot Schematics ------------------ None Fabricated ------------ Nothing Alien Tech Used ----------------- None Achievements -------------- None Challenges ------------ None Game ------ Seed HugeDisruptionField Manual? 0 Play Time 00:24:09 Cumulative 5.2 hours Start 2024.04.01 @ 17:07:20 End 2024.04.01 @ 19:18:51 Sessions 2 Manual Loads 0 Difficulty Rogue Special Mode None Game No. 11 Rogue 11 Adventurer 0 Explorer 0 Win Type - Total 0 Types 0/0/0/0/0/0/0/0/0 Lore% 5 Gallery% 11 Achievement% 14 Wizard Run 0 Options --------- Layout 1 ASCII 0 Keyboard 0 Movement Mouse Keybinds 0 Fullscreen 2 Font 32/SmallcapsGlow Map View 50x35 Zoom Use 0% Tactical HUD 0 Map Filters NONE Filters NONE Steam 1 RUN: 05a8ab5f-4b35-400e-acc9-576df3ffa61d